[Event "Titled Tuesday Blitz March 21 Early 2023"]
[White "Howell, David W L"]
[Black "Vasquez Schroeder, Rodrigo"]
[WhiteFideId "410608"]
[BlackFideId "3400042"]
[WhiteElo "2567"]
[BlackElo "2600"]
[Result "1/2-1/2"]
[Round "04"]
[TimeControl "180+2"]
[Date "2023.03.21"]
[WhiteClock "0:00:04"]
[BlackClock "0:00:20"]

1. d4 {[%clk 0:02:59]}  d5 {[%clk 0:02:59]} 2. Nf3 {[%clk 0:02:56]}  Nf6 {[%clk 0:02:59]} 3. g3 {[%clk 0:02:51]}  g6 {[%clk 0:02:57]} 4. Bg2 {[%clk 0:02:52]}  Bg7 {[%clk 0:02:57]} 5. c4 {[%clk 0:02:51]}  dxc4 {[%clk 0:02:52]} 6. Na3 {[%clk 0:02:51]}  O-O {[%clk 0:02:44]} 7. O-O {[%clk 0:02:50]}  Nc6 {[%clk 0:02:42]} 8. Nxc4 {[%clk 0:02:50]}  Be6 {[%clk 0:02:42]} 9. b3 {[%clk 0:02:50]}  Bd5 {[%clk 0:02:42]} 10. Bb2 {[%clk 0:02:48]}  a5 {[%clk 0:02:42]} 11. Ne3 {[%clk 0:02:46]}  Be4 {[%clk 0:02:41]} 12. a3 {[%clk 0:02:46]}  e6 {[%clk 0:02:37]} 13. Rc1 {[%clk 0:02:42]}  Ne7 {[%clk 0:02:37]} 14. Nc4 {[%clk 0:02:36]}  Nf5 {[%clk 0:02:26]} 15. e3 {[%clk 0:02:29]}  Bd5 {[%clk 0:02:19]} 16. Qe2 {[%clk 0:02:26]}  c6 {[%clk 0:02:13]} 17. Rfd1 {[%clk 0:02:20]}  Qe7 {[%clk 0:02:05]} 18. Bh3 {[%clk 0:01:52]}  Bxf3 {[%clk 0:01:44]} 19. Qxf3 {[%clk 0:01:51]}  Rfd8 {[%clk 0:01:43]} 20. e4 {[%clk 0:01:40]}  Nh6 {[%clk 0:01:43]} 21. Qe2 {[%clk 0:01:32]}  Kh8 {[%clk 0:01:30]} 22. Bg2 {[%clk 0:01:30]}  Nhg8 {[%clk 0:01:29]} 23. Rc2 {[%clk 0:01:17]}  Ne8 {[%clk 0:01:24]} 24. a4 {[%clk 0:01:03]}  Qc7 {[%clk 0:01:16]} 25. Qe3 {[%clk 0:00:41]}  Ngf6 {[%clk 0:01:13]} 26. Ba3 {[%clk 0:00:38]}  Kg8 {[%clk 0:01:11]} 27. h3 {[%clk 0:00:38]}  Bf8 {[%clk 0:01:11]} 28. Bc1 {[%clk 0:00:37]}  Nd7 {[%clk 0:00:55]} 29. Qe2 {[%clk 0:00:35]}  Nb6 {[%clk 0:00:49]} 30. Bf4 {[%clk 0:00:35]}  Nd6 {[%clk 0:00:50]} 31. Kh2 {[%clk 0:00:27]}  Be7 {[%clk 0:00:40]} 32. Qe1 {[%clk 0:00:23]}  Rd7 {[%clk 0:00:37]} 33. Ne5 {[%clk 0:00:21]}  Rdd8 {[%clk 0:00:37]} 34. Nc4 {[%clk 0:00:21]}  Rdc8 {[%clk 0:00:32]} 35. Ra1 {[%clk 0:00:16]}  Nbxc4 {[%clk 0:00:26]} 36. bxc4 {[%clk 0:00:17]}  Qd8 {[%clk 0:00:27]} 37. c5 {[%clk 0:00:16]}  Ne8 {[%clk 0:00:27]} 38. Be3 {[%clk 0:00:16]}  Nc7 {[%clk 0:00:25]} 39. Rb2 {[%clk 0:00:14]}  Ra7 {[%clk 0:00:23]} 40. Rab1 {[%clk 0:00:13]}  e5 {[%clk 0:00:20]} 41. dxe5 {[%clk 0:00:10]}  Ne6 {[%clk 0:00:21]} 42. Qc3 {[%clk 0:00:10]}  Qc7 {[%clk 0:00:20]} 43. f4 {[%clk 0:00:10]}  Rd8 {[%clk 0:00:21]} 44. Bf1 {[%clk 0:00:09]}  Rd7 {[%clk 0:00:20]} 45. Rc1 {[%clk 0:00:09]}  Ra8 {[%clk 0:00:20]} 46. Rd2 {[%clk 0:00:08]}  Rad8 {[%clk 0:00:20]} 47. Rxd7 {[%clk 0:00:08]}  Rxd7 {[%clk 0:00:21]} 48. Be2 {[%clk 0:00:08]}  Qd8 {[%clk 0:00:21]} 49. Kg2 {[%clk 0:00:08]}  Nd4 {[%clk 0:00:21]} 50. Bd1 {[%clk 0:00:04]}  Nb5 {[%clk 0:00:20]} 51. axb5 {[%clk 0:00:04]}  Rxd1 {[%clk 0:00:21]} 52. Rxd1 {[%clk 0:00:04]}  Qxd1 {[%clk 0:00:21]} 53. bxc6 {[%clk 0:00:04]}  Qe2+ {[%clk 0:00:22]} 54. Bf2 {[%clk 0:00:03]}  Qxe4+ {[%clk 0:00:21]} 55. Kg1 {[%clk 0:00:04]}  Qxc6 {[%clk 0:00:21]} 56. Qxa5 {[%clk 0:00:04]}  Qd5 {[%clk 0:00:21]} 57. Qc3 {[%clk 0:00:04]}  h5 {[%clk 0:00:21]} 58. Qd4 {[%clk 0:00:04]}  Qc6 {[%clk 0:00:20]} 59. Qd3 {[%clk 0:00:04]}  Bxc5 {[%clk 0:00:19]} 60. Bxc5 {[%clk 0:00:04]}  Qxc5+ {[%clk 0:00:19]} 61. Kg2 {[%clk 0:00:05]}  Qc6+ {[%clk 0:00:20]} 62. Kf2 {[%clk 0:00:06]}  Kf8 {[%clk 0:00:21]} 63. Qd8+ {[%clk 0:00:05]}  Kg7 {[%clk 0:00:21]} 64. Qd4 {[%clk 0:00:05]}  Qc2+ {[%clk 0:00:21]} 65. Kf3 {[%clk 0:00:05]}  Qb3+ {[%clk 0:00:21]} 66. Kf2 {[%clk 0:00:05]}  Qe6 {[%clk 0:00:21]} 67. Kg2 {[%clk 0:00:05]}  b5 {[%clk 0:00:21]} 68. Qb2 {[%clk 0:00:05]}  Qd5+ {[%clk 0:00:21]} 69. Kh2 {[%clk 0:00:06]}  Kg8 {[%clk 0:00:20]} 70. g4 {[%clk 0:00:05]}  hxg4 {[%clk 0:00:20]} 71. hxg4 {[%clk 0:00:06]}  Qc4 {[%clk 0:00:20]} 72. Kg3 {[%clk 0:00:06]}  b4 {[%clk 0:00:21]} 73. Kf3 {[%clk 0:00:04]}  g5 {[%clk 0:00:20]} 74. fxg5 {[%clk 0:00:04]}  Kh7 {[%clk 0:00:20]} 75. Qh2+ {[%clk 0:00:03]}  Kg8 {[%clk 0:00:20]} 76. Qb2 {[%clk 0:00:04]}  Kh7 {[%clk 0:00:20]} 77. Qh2+ {[%clk 0:00:03]}  Kg8 {[%clk 0:00:20]} 78. Qb2 {[%clk 0:00:04]} 1/2-1/2


[Site "https://www.chess.com"]

[Event "Titled Tuesday Blitz March 21 Early 2023"]
[White "Nogerbek, Kazybek"]
[Black "Le, Tuan Minh"]
[WhiteFideId "13710427"]
[BlackFideId "12401153"]
[WhiteElo "2501"]
[BlackElo "2558"]
[Result "0-1"]
[Round "04"]
[TimeControl "180+2"]
[Date "2023.03.21"]
[WhiteClock "0:00:01"]
[BlackClock "0:00:11"]

1. d4 {[%clk 0:03:00]}  d5 {[%clk 0:03:00]} 2. Nf3 {[%clk 0:03:00]}  Nf6 {[%clk 0:03:00]} 3. c4 {[%clk 0:03:01]}  c6 {[%clk 0:03:00]} 4. e3 {[%clk 0:02:52]}  Bf5 {[%clk 0:02:59]} 5. Nc3 {[%clk 0:02:52]}  e6 {[%clk 0:02:59]} 6. Nh4 {[%clk 0:02:53]}  Be4 {[%clk 0:02:58]} 7. f3 {[%clk 0:02:51]}  Bg6 {[%clk 0:02:58]} 8. Qb3 {[%clk 0:02:49]}  Qc7 {[%clk 0:02:57]} 9. Bd2 {[%clk 0:02:48]}  Be7 {[%clk 0:02:43]} 10. Nxg6 {[%clk 0:02:47]}  hxg6 {[%clk 0:02:43]} 11. O-O-O {[%clk 0:02:47]}  dxc4 {[%clk 0:02:43]} 12. Bxc4 {[%clk 0:02:47]}  b5 {[%clk 0:02:43]} 13. Be2 {[%clk 0:02:46]}  a6 {[%clk 0:02:44]} 14. h4 {[%clk 0:02:33]}  c5 {[%clk 0:02:38]} 15. dxc5 {[%clk 0:02:29]}  Nbd7 {[%clk 0:02:26]} 16. Kb1 {[%clk 0:02:10]}  Nxc5 {[%clk 0:02:18]} 17. Qc2 {[%clk 0:02:08]}  Rc8 {[%clk 0:02:18]} 18. Rc1 {[%clk 0:02:07]}  O-O {[%clk 0:02:09]} 19. b4 {[%clk 0:01:16]}  Ncd7 {[%clk 0:01:59]} 20. Qb2 {[%clk 0:01:15]}  Qg3 {[%clk 0:01:43]} 21. Bf1 {[%clk 0:00:49]}  Nb6 {[%clk 0:01:41]} 22. Be1 {[%clk 0:00:38]}  Qe5 {[%clk 0:01:32]} 23. e4 {[%clk 0:00:35]}  Nc4 {[%clk 0:01:29]} 24. Bxc4 {[%clk 0:00:26]}  Rxc4 {[%clk 0:01:29]} 25. Ne2 {[%clk 0:00:26]}  Qc7 {[%clk 0:01:02]} 26. a3 {[%clk 0:00:15]}  Rc8 {[%clk 0:01:01]} 27. Bc3 {[%clk 0:00:15]}  Nh5 {[%clk 0:00:39]} 28. Bd2 {[%clk 0:00:14]}  Bf6 {[%clk 0:00:37]} 29. Qb3 {[%clk 0:00:11]}  Ng3 {[%clk 0:00:34]} 30. Bf4 {[%clk 0:00:05]}  Nxe2 {[%clk 0:00:11]} 31. Bxc7 {[%clk 0:00:05]}  Nc3+ {[%clk 0:00:12]} 32. Ka1 {[%clk 0:00:04]}  R8xc7 {[%clk 0:00:11]} 33. Rce1 {[%clk 0:00:02]}  Nxe4+ {[%clk 0:00:10]} 34. Ka2 {[%clk 0:00:03]}  Nd2 {[%clk 0:00:10]} 35. Qd3 {[%clk 0:00:01]}  Rc2+ {[%clk 0:00:11]} 0-1


[Site "https://www.chess.com"]

[Event "Titled Tuesday Blitz March 21 Early 2023"]
[White "Paravyan, David"]
[Black "Svane, Frederik"]
[WhiteFideId "4194985"]
[BlackFideId "12923044"]
[WhiteElo "2577"]
[BlackElo "2502"]
[Result "1-0"]
[Round "04"]
[TimeControl "180+2"]
[Date "2023.03.21"]
[WhiteClock "0:00:16"]
[BlackClock "0:00:03"]

1. Nf3 {[%clk 0:03:00]}  d5 {[%clk 0:02:58]} 2. d4 {[%clk 0:03:00]}  Nf6 {[%clk 0:02:58]} 3. c4 {[%clk 0:03:01]}  e6 {[%clk 0:02:58]} 4. Nc3 {[%clk 0:03:01]}  Nbd7 {[%clk 0:02:55]} 5. cxd5 {[%clk 0:02:59]}  exd5 {[%clk 0:02:56]} 6. Bg5 {[%clk 0:02:59]}  Bb4 {[%clk 0:02:53]} 7. e3 {[%clk 0:02:58]}  h6 {[%clk 0:02:52]} 8. Bxf6 {[%clk 0:02:58]}  Bxc3+ {[%clk 0:02:51]} 9. bxc3 {[%clk 0:02:58]}  Nxf6 {[%clk 0:02:51]} 10. Bd3 {[%clk 0:02:58]}  O-O {[%clk 0:02:51]} 11. O-O {[%clk 0:02:57]}  c5 {[%clk 0:02:52]} 12. dxc5 {[%clk 0:02:55]}  Qc7 {[%clk 0:02:48]} 13. Qb3 {[%clk 0:02:52]}  Qxc5 {[%clk 0:02:48]} 14. Qb4 {[%clk 0:02:52]}  b6 {[%clk 0:02:43]} 15. Rfb1 {[%clk 0:02:47]}  Qc7 {[%clk 0:02:40]} 16. a4 {[%clk 0:02:46]}  Bd7 {[%clk 0:02:38]} 17. a5 {[%clk 0:02:44]}  Rab8 {[%clk 0:02:27]} 18. axb6 {[%clk 0:02:42]}  axb6 {[%clk 0:02:16]} 19. h3 {[%clk 0:02:38]}  Rfc8 {[%clk 0:02:16]} 20. Ra3 {[%clk 0:02:36]}  Qc5 {[%clk 0:02:12]} 21. Ne5 {[%clk 0:02:26]}  Be6 {[%clk 0:02:11]} 22. Ba6 {[%clk 0:02:01]}  Rc7 {[%clk 0:02:04]} 23. Qxc5 {[%clk 0:01:57]}  Rxc5 {[%clk 0:02:05]} 24. Rab3 {[%clk 0:01:58]}  Ne4 {[%clk 0:01:49]} 25. Rxb6 {[%clk 0:01:55]}  Rxb6 {[%clk 0:01:50]} 26. Rxb6 {[%clk 0:01:55]}  Rxc3 {[%clk 0:01:50]} 27. Rb1 {[%clk 0:01:27]}  g6 {[%clk 0:01:48]} 28. Nf3 {[%clk 0:01:22]}  Nc5 {[%clk 0:01:43]} 29. Be2 {[%clk 0:01:16]}  Rc2 {[%clk 0:01:37]} 30. Nd4 {[%clk 0:01:15]}  Rd2 {[%clk 0:01:32]} 31. Rb6 {[%clk 0:01:07]}  Ne4 {[%clk 0:01:12]} 32. Bf3 {[%clk 0:01:03]}  Nxf2 {[%clk 0:00:44]} 33. Nxe6 {[%clk 0:01:03]}  fxe6 {[%clk 0:00:45]} 34. Rxe6 {[%clk 0:01:04]}  Kg7 {[%clk 0:00:45]} 35. Rd6 {[%clk 0:01:05]}  Nd1 {[%clk 0:00:45]} 36. e4 {[%clk 0:00:49]}  d4 {[%clk 0:00:45]} 37. e5 {[%clk 0:00:49]}  Ne3 {[%clk 0:00:31]} 38. Rd7+ {[%clk 0:00:46]}  Kf8 {[%clk 0:00:30]} 39. e6 {[%clk 0:00:47]}  Nf5 {[%clk 0:00:29]} 40. Rf7+ {[%clk 0:00:42]}  Ke8 {[%clk 0:00:27]} 41. Bc6+ {[%clk 0:00:42]}  Kd8 {[%clk 0:00:28]} 42. Rd7+ {[%clk 0:00:40]}  Kc8 {[%clk 0:00:28]} 43. Bb7+ {[%clk 0:00:17]}  Kb8 {[%clk 0:00:27]} 44. e7 {[%clk 0:00:17]}  Ng7 {[%clk 0:00:05]} 45. Bf3 {[%clk 0:00:15]}  d3 {[%clk 0:00:02]} 46. Rd8+ {[%clk 0:00:15]}  Kc7 {[%clk 0:00:03]} 47. Rg8 {[%clk 0:00:16]}  Kd7 {[%clk 0:00:02]} 48. Rxg7 {[%clk 0:00:16]}  Rb2 {[%clk 0:00:03]} 49. Bc6+ {[%clk 0:00:16]} 1-0


[Site "https://www.chess.com"]

[Event "Titled Tuesday Blitz March 21 Early 2023"]
[White "Drygalov, Andrey"]
[Black "Shimanov, Aleksandr"]
[WhiteFideId "24171735"]
[BlackFideId "4198603"]
[WhiteElo "2471"]
[BlackElo "2631"]
[Result "1/2-1/2"]
[Round "04"]
[TimeControl "180+2"]
[Date "2023.03.21"]
[WhiteClock "0:00:11"]
[BlackClock "0:00:04"]

1. e4 {[%clk 0:03:00]}  e6 {[%clk 0:02:56]} 2. d4 {[%clk 0:03:00]}  d5 {[%clk 0:02:56]} 3. Nd2 {[%clk 0:03:00]}  c5 {[%clk 0:02:54]} 4. exd5 {[%clk 0:03:00]}  Qxd5 {[%clk 0:02:54]} 5. Ngf3 {[%clk 0:03:00]}  cxd4 {[%clk 0:02:53]} 6. Bc4 {[%clk 0:03:01]}  Qd6 {[%clk 0:02:51]} 7. O-O {[%clk 0:03:01]}  Nf6 {[%clk 0:02:51]} 8. Nb3 {[%clk 0:03:01]}  Nc6 {[%clk 0:02:51]} 9. Nbxd4 {[%clk 0:03:01]}  Nxd4 {[%clk 0:02:52]} 10. Nxd4 {[%clk 0:03:01]}  Be7 {[%clk 0:02:53]} 11. c3 {[%clk 0:02:49]}  O-O {[%clk 0:02:51]} 12. Re1 {[%clk 0:02:49]}  Bd7 {[%clk 0:02:45]} 13. Bg5 {[%clk 0:02:43]}  Qc5 {[%clk 0:02:40]} 14. Bxf6 {[%clk 0:02:30]}  Bxf6 {[%clk 0:02:41]} 15. Nb3 {[%clk 0:02:29]}  Qc7 {[%clk 0:02:40]} 16. Bd3 {[%clk 0:02:26]}  Rad8 {[%clk 0:02:31]} 17. Qf3 {[%clk 0:02:22]}  a5 {[%clk 0:02:06]} 18. Nd2 {[%clk 0:02:08]}  Bc6 {[%clk 0:02:01]} 19. Ne4 {[%clk 0:02:03]}  Be5 {[%clk 0:01:58]} 20. Qh3 {[%clk 0:02:02]}  h6 {[%clk 0:01:53]} 21. Rad1 {[%clk 0:01:55]}  Rd7 {[%clk 0:01:47]} 22. Nc5 {[%clk 0:01:27]}  Rd5 {[%clk 0:01:20]} 23. Nxe6 {[%clk 0:01:27]}  fxe6 {[%clk 0:01:11]} 24. Qxe6+ {[%clk 0:01:27]}  Kh8 {[%clk 0:00:58]} 25. Qg6 {[%clk 0:01:02]}  Bxh2+ {[%clk 0:00:57]} 26. Kh1 {[%clk 0:01:02]}  Rxd3 {[%clk 0:00:57]} 27. Rxd3 {[%clk 0:00:56]}  Be5 {[%clk 0:00:45]} 28. f3 {[%clk 0:00:40]}  Bf6 {[%clk 0:00:45]} 29. Rde3 {[%clk 0:00:38]}  Qf4 {[%clk 0:00:44]} 30. Qh5 {[%clk 0:00:38]}  a4 {[%clk 0:00:43]} 31. a3 {[%clk 0:00:37]}  Rd8 {[%clk 0:00:40]} 32. R3e2 {[%clk 0:00:36]}  Kh7 {[%clk 0:00:39]} 33. Qh2 {[%clk 0:00:32]}  Qf5 {[%clk 0:00:37]} 34. Qg3 {[%clk 0:00:30]}  Rd5 {[%clk 0:00:33]} 35. Re4 {[%clk 0:00:21]}  Qh5+ {[%clk 0:00:32]} 36. Kg1 {[%clk 0:00:21]}  Rd2 {[%clk 0:00:24]} 37. R4e2 {[%clk 0:00:20]}  Bh4 {[%clk 0:00:18]} 38. Qh3 {[%clk 0:00:11]}  Qc5+ {[%clk 0:00:11]} 39. Kh1 {[%clk 0:00:11]}  Bxe1 {[%clk 0:00:11]} 40. Rxe1 {[%clk 0:00:12]}  Qf2 {[%clk 0:00:10]} 41. Qf5+ {[%clk 0:00:11]}  Kg8 {[%clk 0:00:09]} 42. Qe6+ {[%clk 0:00:11]}  Kh8 {[%clk 0:00:08]} 43. Qc8+ {[%clk 0:00:11]}  Kh7 {[%clk 0:00:06]} 44. Qf5+ {[%clk 0:00:11]}  Kg8 {[%clk 0:00:06]} 45. Qc8+ {[%clk 0:00:11]}  Kh7 {[%clk 0:00:04]} 46. Qf5+ {[%clk 0:00:11]} 1/2-1/2


[Site "https://www.chess.com"]

[Event "Titled Tuesday Blitz March 21 Early 2023"]
[White "Kosteniuk, Alexandra"]
[Black "Alekseenko, Kirill"]
[WhiteFideId "4128125"]
[BlackFideId "4135539"]
[WhiteElo "2453"]
[BlackElo "2683"]
[Result "0-1"]
[Round "04"]
[TimeControl "180+2"]
[Date "2023.03.21"]
[WhiteClock "0:00:07"]
[BlackClock "0:00:28"]

1. e4 {[%clk 0:03:00]}  e5 {[%clk 0:03:00]} 2. Nf3 {[%clk 0:03:00]}  Nc6 {[%clk 0:03:01]} 3. Bb5 {[%clk 0:03:00]}  a6 {[%clk 0:03:01]} 4. Ba4 {[%clk 0:03:00]}  d6 {[%clk 0:03:01]} 5. c4 {[%clk 0:02:58]}  Bd7 {[%clk 0:02:56]} 6. d4 {[%clk 0:02:53]}  Nge7 {[%clk 0:02:56]} 7. Nc3 {[%clk 0:02:48]}  Ng6 {[%clk 0:02:56]} 8. d5 {[%clk 0:02:44]}  Nb8 {[%clk 0:02:56]} 9. h4 {[%clk 0:02:43]}  h5 {[%clk 0:02:27]} 10. Ng5 {[%clk 0:02:32]}  Be7 {[%clk 0:02:24]} 11. g3 {[%clk 0:02:30]}  Bxa4 {[%clk 0:02:20]} 12. Qxa4+ {[%clk 0:02:29]}  Nd7 {[%clk 0:02:12]} 13. b4 {[%clk 0:02:22]}  O-O {[%clk 0:02:08]} 14. Qd1 {[%clk 0:02:19]}  Nf6 {[%clk 0:02:09]} 15. f3 {[%clk 0:02:10]}  a5 {[%clk 0:02:08]} 16. b5 {[%clk 0:01:59]}  Qd7 {[%clk 0:02:02]} 17. Be3 {[%clk 0:01:53]}  c6 {[%clk 0:01:58]} 18. Na4 {[%clk 0:01:41]}  Bd8 {[%clk 0:01:54]} 19. Rb1 {[%clk 0:01:31]}  cxd5 {[%clk 0:01:39]} 20. cxd5 {[%clk 0:01:31]}  Rc8 {[%clk 0:01:40]} 21. Qe2 {[%clk 0:01:17]}  Nh7 {[%clk 0:01:31]} 22. Nxh7 {[%clk 0:01:04]}  Kxh7 {[%clk 0:01:32]} 23. f4 {[%clk 0:01:02]}  exf4 {[%clk 0:01:27]} 24. gxf4 {[%clk 0:00:58]}  Re8 {[%clk 0:01:16]} 25. Qxh5+ {[%clk 0:00:29]}  Kg8 {[%clk 0:01:16]} 26. O-O {[%clk 0:00:20]}  Rxe4 {[%clk 0:01:13]} 27. Nb6 {[%clk 0:00:20]}  Bxb6 {[%clk 0:01:05]} 28. Bxb6 {[%clk 0:00:20]}  Rc3 {[%clk 0:01:00]} 29. f5 {[%clk 0:00:16]}  Rxh4 {[%clk 0:00:45]} 30. Qg5 {[%clk 0:00:15]}  Rhh3 {[%clk 0:00:41]} 31. Qd8+ {[%clk 0:00:11]}  Qxd8 {[%clk 0:00:41]} 32. Bxd8 {[%clk 0:00:12]}  Ne5 {[%clk 0:00:37]} 33. Rfc1 {[%clk 0:00:09]}  Rcg3+ {[%clk 0:00:36]} 34. Kf1 {[%clk 0:00:09]}  Nd3 {[%clk 0:00:30]} 35. Rc8 {[%clk 0:00:07]}  Rh1+ {[%clk 0:00:27]} 36. Ke2 {[%clk 0:00:07]}  Rh2+ {[%clk 0:00:28]} 37. Kd1 {[%clk 0:00:07]}  Rg1# {[%clk 0:00:28]} 0-1


[Site "https://www.chess.com"]

[Event "Titled Tuesday Blitz March 21 Early 2023"]
[White "Harsha Bharathakoti"]
[Black "Duda, Jan-Krzysztof"]
[WhiteFideId "5078776"]
[BlackFideId "1170546"]
[WhiteElo "2481"]
[BlackElo "2790"]
[Result "0-1"]
[Round "04"]
[TimeControl "180+2"]
[Date "2023.03.21"]
[WhiteClock "0:00:02"]
[BlackClock "0:00:05"]

1. c4 {[%clk 0:02:58]}  e6 {[%clk 0:03:00]} 2. Nf3 {[%clk 0:02:54]}  d5 {[%clk 0:03:00]} 3. d4 {[%clk 0:02:55]}  Be7 {[%clk 0:02:55]} 4. Nc3 {[%clk 0:02:54]}  Nf6 {[%clk 0:02:56]} 5. g3 {[%clk 0:02:53]}  O-O {[%clk 0:02:55]} 6. Bg2 {[%clk 0:02:52]}  Nbd7 {[%clk 0:02:56]} 7. O-O {[%clk 0:02:50]}  b6 {[%clk 0:02:55]} 8. cxd5 {[%clk 0:02:35]}  Nxd5 {[%clk 0:02:56]} 9. Nxd5 {[%clk 0:02:22]}  exd5 {[%clk 0:02:57]} 10. Bf4 {[%clk 0:02:22]}  Bb7 {[%clk 0:02:46]} 11. Rc1 {[%clk 0:02:22]}  c5 {[%clk 0:02:46]} 12. dxc5 {[%clk 0:02:13]}  bxc5 {[%clk 0:02:47]} 13. Ne5 {[%clk 0:02:06]}  Nf6 {[%clk 0:02:06]} 14. Qa4 {[%clk 0:01:51]}  Qb6 {[%clk 0:01:56]} 15. Bg5 {[%clk 0:01:06]}  Rfd8 {[%clk 0:01:24]} 16. Bxf6 {[%clk 0:00:53]}  Qxf6 {[%clk 0:01:13]} 17. Nd7 {[%clk 0:00:53]}  Qd4 {[%clk 0:00:53]} 18. Qxd4 {[%clk 0:00:52]}  cxd4 {[%clk 0:00:53]} 19. Ne5 {[%clk 0:00:41]}  Bf6 {[%clk 0:00:45]} 20. Nd3 {[%clk 0:00:36]}  Rac8 {[%clk 0:00:30]} 21. Bh3 {[%clk 0:00:35]}  Rc4 {[%clk 0:00:29]} 22. Rfd1 {[%clk 0:00:24]}  Ba6 {[%clk 0:00:22]} 23. Bg2 {[%clk 0:00:23]}  g5 {[%clk 0:00:13]} 24. Bf3 {[%clk 0:00:13]}  Kg7 {[%clk 0:00:13]} 25. Kg2 {[%clk 0:00:13]}  Bb5 {[%clk 0:00:08]} 26. Rd2 {[%clk 0:00:10]}  a5 {[%clk 0:00:06]} 27. Rdd1 {[%clk 0:00:06]}  Kg6 {[%clk 0:00:06]} 28. g4 {[%clk 0:00:06]}  Kg7 {[%clk 0:00:06]} 29. h3 {[%clk 0:00:07]}  h6 {[%clk 0:00:06]} 30. Rd2 {[%clk 0:00:06]}  Kf8 {[%clk 0:00:07]} 31. Rdd1 {[%clk 0:00:05]}  Ke7 {[%clk 0:00:07]} 32. Rd2 {[%clk 0:00:05]}  Kd6 {[%clk 0:00:08]} 33. Rcd1 {[%clk 0:00:05]}  Rdc8 {[%clk 0:00:08]} 34. Ne1 {[%clk 0:00:03]}  Be5 {[%clk 0:00:08]} 35. Nd3 {[%clk 0:00:03]}  f6 {[%clk 0:00:05]} 36. Kf1 {[%clk 0:00:02]}  Rc2 {[%clk 0:00:04]} 37. Ke1 {[%clk 0:00:02]}  Bxd3 {[%clk 0:00:02]} 38. Rxd3 {[%clk 0:00:01]}  Rxb2 {[%clk 0:00:03]} 39. Ra3 {[%clk 0:00:02]}  Rc5 {[%clk 0:00:03]} 40. Ra4 {[%clk 0:00:02]}  Kc6 {[%clk 0:00:03]} 41. Kf1 {[%clk 0:00:02]}  Kb5 {[%clk 0:00:03]} 42. Ra3 {[%clk 0:00:03]}  Kb4 {[%clk 0:00:04]} 43. Rad3 {[%clk 0:00:01]}  a4 {[%clk 0:00:02]} 44. a3+ {[%clk 0:00:01]}  Kb5 {[%clk 0:00:03]} 45. Kg2 {[%clk 0:00:02]}  Rb3 {[%clk 0:00:03]} 46. R1d2 {[%clk 0:00:01]}  Rcc3 {[%clk 0:00:03]} 47. Bxd5 {[%clk 0:00:01]}  Rxa3 {[%clk 0:00:04]} 48. Rxc3 {[%clk 0:00:02]}  dxc3 {[%clk 0:00:04]} 49. Rc2 {[%clk 0:00:02]}  Rb3 {[%clk 0:00:04]} 50. Kf3 {[%clk 0:00:02]}  Kb4 {[%clk 0:00:04]} 51. Ke4 {[%clk 0:00:02]}  Rb2 {[%clk 0:00:04]} 52. Kd3 {[%clk 0:00:02]}  Rb1 {[%clk 0:00:04]} 53. e3 {[%clk 0:00:01]}  Rd1+ {[%clk 0:00:04]} 54. Ke4 {[%clk 0:00:02]}  Rd2 {[%clk 0:00:05]} 55. Rc1 {[%clk 0:00:01]}  c2 {[%clk 0:00:05]} 56. f4 {[%clk 0:00:02]}  Bb2 {[%clk 0:00:05]} 0-1


[Site "https://www.chess.com"]

[Event "Titled Tuesday Blitz March 21 Early 2023"]
[White "Daneshvar, Bardiya"]
[Black "Narayanan, Srinath"]
[WhiteFideId "12576468"]
[BlackFideId "5018420"]
[WhiteElo "2468"]
[BlackElo "2438"]
[Result "1-0"]
[Round "04"]
[TimeControl "180+2"]
[Date "2023.03.21"]
[WhiteClock "0:00:07"]
[BlackClock "0:00:01"]

1. b3 {[%clk 0:03:00]}  e5 {[%clk 0:02:58]} 2. Bb2 {[%clk 0:02:59]}  Nc6 {[%clk 0:02:58]} 3. e3 {[%clk 0:03:00]}  Nf6 {[%clk 0:02:58]} 4. Bb5 {[%clk 0:02:59]}  Bd6 {[%clk 0:02:58]} 5. Na3 {[%clk 0:03:00]}  Be7 {[%clk 0:02:57]} 6. Nc4 {[%clk 0:02:53]}  d6 {[%clk 0:02:57]} 7. Na5 {[%clk 0:02:52]}  Bd7 {[%clk 0:02:47]} 8. Nxc6 {[%clk 0:02:34]}  bxc6 {[%clk 0:02:48]} 9. Be2 {[%clk 0:02:34]}  O-O {[%clk 0:02:47]} 10. d4 {[%clk 0:02:33]}  e4 {[%clk 0:02:41]} 11. c4 {[%clk 0:02:33]}  d5 {[%clk 0:02:41]} 12. c5 {[%clk 0:02:34]}  a5 {[%clk 0:02:22]} 13. Bc3 {[%clk 0:02:31]}  Be6 {[%clk 0:02:18]} 14. a4 {[%clk 0:02:28]}  Ra7 {[%clk 0:02:11]} 15. Qd2 {[%clk 0:02:26]}  Qa8 {[%clk 0:02:12]} 16. Bd1 {[%clk 0:02:26]}  Bg4 {[%clk 0:01:57]} 17. Ne2 {[%clk 0:02:20]}  Rb8 {[%clk 0:01:56]} 18. h3 {[%clk 0:02:19]}  Be6 {[%clk 0:01:54]} 19. O-O {[%clk 0:02:16]}  h6 {[%clk 0:01:45]} 20. Bc2 {[%clk 0:02:12]}  Ra6 {[%clk 0:01:39]} 21. Rfb1 {[%clk 0:02:11]}  Rb7 {[%clk 0:01:37]} 22. Bd1 {[%clk 0:02:03]}  Bf5 {[%clk 0:01:33]} 23. Rb2 {[%clk 0:02:01]}  Nh7 {[%clk 0:01:27]} 24. Rab1 {[%clk 0:01:54]}  Ng5 {[%clk 0:01:25]} 25. Nf4 {[%clk 0:01:50]}  Ne6 {[%clk 0:01:20]} 26. Nxe6 {[%clk 0:01:49]}  Bxe6 {[%clk 0:01:21]} 27. b4 {[%clk 0:01:45]}  axb4 {[%clk 0:01:17]} 28. Rxb4 {[%clk 0:01:46]}  Rxb4 {[%clk 0:01:17]} 29. Rxb4 {[%clk 0:01:47]}  Qc8 {[%clk 0:01:18]} 30. Qb2 {[%clk 0:01:46]}  Ra8 {[%clk 0:01:18]} 31. Rb7 {[%clk 0:01:33]}  g5 {[%clk 0:01:16]} 32. a5 {[%clk 0:01:28]}  Kg7 {[%clk 0:01:14]} 33. Be2 {[%clk 0:01:12]}  g4 {[%clk 0:01:15]} 34. hxg4 {[%clk 0:01:03]}  Bxg4 {[%clk 0:01:12]} 35. a6 {[%clk 0:00:59]}  Bd8 {[%clk 0:00:40]} 36. Bf1 {[%clk 0:00:45]}  h5 {[%clk 0:00:29]} 37. a7 {[%clk 0:00:39]}  Qd7 {[%clk 0:00:30]} 38. Qa3 {[%clk 0:00:35]}  Qc8 {[%clk 0:00:30]} 39. Qb3 {[%clk 0:00:29]}  Qd7 {[%clk 0:00:29]} 40. Qa4 {[%clk 0:00:29]}  Qc8 {[%clk 0:00:09]} 41. Qxc6 {[%clk 0:00:29]}  Be6 {[%clk 0:00:08]} 42. Qa6 {[%clk 0:00:23]}  h4 {[%clk 0:00:07]} 43. Ba5 {[%clk 0:00:13]}  h3 {[%clk 0:00:07]} 44. g3 {[%clk 0:00:13]}  Bg4 {[%clk 0:00:06]} 45. Kh2 {[%clk 0:00:13]}  Qf5 {[%clk 0:00:05]} 46. Be1 {[%clk 0:00:13]}  Qf3 {[%clk 0:00:02]} 47. Rb8 {[%clk 0:00:13]}  Qd1 {[%clk 0:00:01]} 48. Qa5 {[%clk 0:00:07]} 1-0


[Site "https://www.chess.com"]